Cogmind - Beta 10.1 *** ADVENTURER MODE // 2020.09.22 @ 22:36:13 Player: HOTSOUP Result: Destroyed by Y-45 Defender with Heavy Assault Rifle Performance ------------- Evolutions (1) 500 Regions Visited (3) 600 Robots Destroyed (23) 115 Value Destroyed (473) 473 Prototype IDs (2) 40 Alien Tech Used (0) 0 Bonus (11) 11 TOTAL SCORE: 1739 Bonus ------- High Alert Combat Kills 11 Cogmind --------- Core Integrity 0/400 Matter 13/300 Energy 100/100 System Corruption 0% Temperature Cool (18) Movement Flying (35) Location -9/Storage Parts ------- > --- POWER (1) -------- (None) > --- PROPULSION (4) --- Improved Flight Unit > --- UTILITY (2) ------ (None) > --- WEAPON (2) ------- (None) > --- INVENTORY (4) ---- Improved Flight Unit Improved Flight Unit Light Assault Rifle Peak State ------------ > --- POWER ------------ Cooled Ion Engine > --- PROPULSION ------- Flight Unit Flight Unit Improved Flight Unit > --- UTILITY ---------- (None) > --- WEAPON ----------- (None) > --- INVENTORY -------- Wheel Light Assault Rifle [Rating: 8] Favorites ----------- Power Ion Engine Engine Ion Engine Propulsion Flight Unit Wheel Wheel Flight Unit Flight Unit Utility Small Storage Unit Storage Small Storage Unit Weapon Assault Rifle Energy Gun EM Shotgun Ballistic Gun Assault Rifle Launcher Grenade Launcher Build | -11 -10 -9 -9 ------- Run | Scr Mat Mat Sto Slots Evolved 2 | . . 2 . Power . | . . . . Propulsion 2 | . . 2 . Utility . | . . . . Weapon . | . . . . Parts Attached 20 | 7 3 7 3 Power 3 | 1 . 2 . Engine 3 | 1 . 2 . Core . | . . . . Reactor . | . . . . Propulsion 9 | 2 2 2 3 Treads . | . . . . Leg . | . . . . Wheel 2 | 2 . . . Hover . | . . . . Flight 7 | . 2 2 3 Utility 2 | 1 1 . . Device . | . . . . Storage 2 | 1 1 . . Processor . | . . . . Hackware . | . . . . Protection . | . . . . Artifact . | . . . . Weapon 6 | 3 . 3 . Energy Gun 2 | . . 2 . Energy Cannon . | . . . . Ballistic Gun 3 | 3 . . . Ballistic Cannon . | . . . . Launcher 1 | . . 1 . Special Weapon . | . . . . Impact Weapon . | . . . . Slashing Weapon . | . . . . Piercing Weapon . | . . . . Special Melee Weapon . | . . . . Unidentified Prototypes 2 | . . 1 1 Parts Lost 8 | . . 6 2 Power 2 | . . 1 1 Propulsion 3 | . . 2 1 Utility . | . . . . Weapon 3 | . . 3 . Highest Loss Streak 5 | . . 5 2 Average Slot Usage (%) 68 | . 96 61 21 Engine 11 | . 14 10 9 Wheel 10 | . 23 . . Flight 18 | . 3 40 12 Storage 11 | . 26 . . Ballistic Gun 11 | . 27 . . Launcher 3 | . . 9 . Naked Turns . | . . . . Heaviest Build 29 | 13 29 21 8 Greatest Support 26 | 26 26 16 8 Greatest Overweight (x) 9 | . 9 1 2 Average Overweight (x) . | . 1 . . Largest Inventory Capacity 12 | 6 12 10 4 Average Capacity 7 | 5 11 4 4 Most Carried 8 | 3 8 7 4 Average Carried 3 | 2 4 3 3 Final Capacity 10 | 6 10 4 4 Final Carried 8 | 3 8 2 3 Class Distribution -------------------- 77% | Mutant 22% | Scavenger-Sprinter Dominant Class ---------------- Mutant | -10/Materials Scavenger-Sprinter | -9/Materials Mutant | -9/Storage Resources | -11 -10 -9 -9 ----------- Run | Scr Mat Mat Sto Matter Collected 457 | 241 174 42 . Remotely . | . . . . Salvage Created 395 | . 312 83 . Parts 32 | . 20 12 . Haulers Intercepted . | . . . . Recyclers Shooed 1 | . . 1 . Parts Field Recycled . | . . . . Retrieved Matter . | . . . . Parts Self-Destructed . | . . . . Prevented . | . . . . Kills | -11 -10 -9 -9 ------- Run | Scr Mat Mat Sto Combat Hostiles Destroyed 19 | . 10 9 . Guns 10 | . 10 . . AOE 9 | . . 9 . Classes Destroyed 6 | . 4 2 . Worker 2 | . 1 1 . Recycler 1 | . . 1 . Watcher 1 | . 1 . . Swarmer 13 | . 6 7 . Grunt 4 | . 4 . . Sentry 2 | . . 2 . Best Kill Streak 5 | . 5 4 . Combat Bots Only 5 | . 5 4 . Max Kills in Single Turn 2 | . 1 2 . Gunslinging . | . . . . Exploded 2 | . . 2 . Melee . | . . . . Uniques/NPCs Destroyed . | . . . . Combat | -11 -10 -9 -9 -------- Run | Scr Mat Mat Sto Damage Taken 1090 | . 242 362 486 Core 483 | . 72 93 318 Absorbed by Shields . | . . . . Core Remaining (%) 85 | 100 71 . . Volleys Fired 51 | . 25 26 . Largest 2 | . 2 2 . Hottest 90 | . 40 90 . Shots Fired 77 | . 50 27 . Gun 53 | . 50 3 . Cannon . | . . . . Launcher 24 | . . 24 . Special . | . . . . Kinetic 50 | . 50 . . Thermal . | . . . . Explosive 24 | . . 24 . Electromagnetic 3 | . . 3 . Robot Hit Streak 14 | . 9 14 . Robot Miss Streak 2 | . 2 2 . Penetration Max . | . . . . Secondary Targets 2 | . 2 . . Max Gunslinging Chain 1 | . 1 . . Shots Hit Robots 50 | . 36 14 . Core Hits 38 | . 17 19 2 Critical Hits . | . . . . Critical Kills . | . . . . Critical Parts Destroyed . | . . . . Melee Attacks . | . . . . Impact . | . . . . Slashing . | . . . . Piercing . | . . . . Sneak Attacks . | . . . . Combat Hostiles . | . . . . Follow-up Attacks . | . . . . Damage Inflicted 1531 | . 430 1092 9 Guns 430 | . 430 . . Cannons . | . . . . Explosions 1092 | . . 1092 . Melee . | . . . . Ramming 9 | . . . 9 Kinetic 430 | . 430 . . Thermal 256 | . . 256 . Explosive 836 | . . 836 . Electromagnetic . | . . . . Impact . | . . . . Slashing . | . . . . Piercing . | . . . . Highest Corruption . | . . . . Average Corruption . | . . . . Corruption Purged . | . . . . Overload Shots . | . . . . Overflow Damage 76 | . . 76 . Projectiles . | . . . . Explosions 76 | . . 76 . Melee . | . . . . Knockbacks . | . . . . Impact . | . . . . Kinetic . | . . . . Secondary . | . . . . Self-Inflicted Damage 135 | . . 131 4 Shots 5 | . . 5 . Rammed 2 | . . . 2 Targets Rammed 2 | . . . 2 Kicked . | . . . . Crushed . | . . . . Highest Temperature 435 | . 8 435 . Average Temperature 121 | . 3 140 . Received Heat Transfer 393 | . 96 108 189 Effects 2 | . . 2 . Matter Decay 2 | . . 2 . Siege Activations . | . . . . Robots Corrupted . | . . . . Combat Hostiles . | . . . . Parts Fried . | . . . . Impact Corruptions . | . . . . Robots Melted . | . . . . Combat Hostiles . | . . . . Parts Melted . | . . . . Heat Transferred 200 | . . 200 . Parts Sabotaged . | . . . . Parts Stolen . | . . . . Parts Stripped . | . . . . Power Chain Reactions . | . . . . Missiles Intercepted . | . . . . Alert | -11 -10 -9 -9 ------- Run | Scr Mat Mat Sto Peak Influence 472 | . 278 472 275 Initial 169 | . . 99 169 Average 157 | . 111 309 217 Maximum Alert Level 2 | . 1 2 1 Low Security (%) 56 | 100 74 18 25 Level 1 37 | . 25 63 74 Level 2 5 | . . 18 . Level 3 . | . . . . Level 4 . | . . . . Level 5 . | . . . . High Security . | . . . . Max Security . | . . . . Squads Dispatched 7 | . . 2 5 Investigation 2 | . . . 2 Extermination . | . . . . Reinforcement 5 | . . 2 3 Assault . | . . . . Garrison . | . . . . Intercept . | . . . . Construction Impeded . | . . . . Haulers Reinforced . | . . . . Stealth | -11 -10 -9 -9 --------- Run | Scr Mat Mat Sto Distress Signals 1 | . . 1 . Communications Jammed . | . . . . Distress Signals . | . . . . Times Spotted 44 | . 13 20 11 Peak Tracking Total 9 | . 5 6 9 Tactical Retreats 2 | . . 2 . Traps | -11 -10 -9 -9 ------- Run | Scr Mat Mat Sto Traps Triggered 2 | . . . 2 Indirectly . | . . . . Trap Hack Attempts . | . . . . Triggered . | . . . . Disarmed . | . . . . Reprogrammed . | . . . . Reused . | . . . . Traps Extracted . | . . . . Installed . | . . . . Triggered . | . . . . Machines | -11 -10 -9 -9 ---------- Run | Scr Mat Mat Sto Machines Disabled 8 | . 1 7 . Max in Single Turn 2 | . 1 2 . Machines Sabotaged . | . . . . Garrisons Compromised . | . . . . Overloaded Fab Kills . | . . . . Fab Network Shutdowns . | . . . . Hacking | -11 -10 -9 -9 --------- Run | Scr Mat Mat Sto Machines Accessed 13 | . 5 3 5 Terminals 12 | . 5 2 5 Fabricators . | . . . . Repair Stations . | . . . . Recycling Units . | . . . . Scanalyzers 1 | . . 1 . Garrison Access . | . . . . Total Hacks 26 | . 10 6 10 Successful 13 | . 5 4 4 Failed 13 | . 5 2 6 Catastrophic 2 | . 1 . 1 Database Lockouts . | . . . . Manual 23 | . 10 4 9 Terminals 24 | . 10 4 10 Fabricators . | . . . . Repair Stations . | . . . . Recycling Units . | . . . . Scanalyzers 2 | . . 2 . Garrison Access . | . . . . Terminal Hacks 2 | . . . 2 Open Door 1 | . . . 1 Branch Access Points 1 | . . . 1 Fabricator Hacks . | . . . . Repair Station Hacks . | . . . . Recycling Unit Hacks . | . . . . Scanalyzer 2 | . . 2 . Insert Component 1 | . . 1 . Analyze 1 | . . 1 . Garrison Access Hacks . | . . . . Unauthorized Hacks 9 | . 5 2 2 Terminals 9 | . 5 2 2 Assimilate 3 | . 1 1 1 Detonate 2 | . 2 . . Operators 4 | . 2 1 1 Fabricators . | . . . . Repair Stations . | . . . . Recycling Units . | . . . . Scanalyzers . | . . . . Garrison Access . | . . . . Data Cores Recovered . | . . . . Used . | . . . . Hacking Detections 8 | . 4 2 2 Full Trace Events 2 | . . . 2 Feedback Events . | . . . . Feedback Blocked . | . . . . Robot Schematics Acquired . | . . . . Robots Built . | . . . . Matter . | . . . . Time . | . . . . Total Robot Build Rating . | . . . . Part Schematics Acquired 1 | . . 1 . Parts Built . | . . . . Matter . | . . . . Time . | . . . . Total Part Build Rating . | . . . . Parts Repaired . | . . . . Time . | . . . . Parts Recycled . | . . . . Recycled Matter . | . . . . Retrieved Matter . | . . . . Retrieved Components . | . . . . Parts Scanalyzed 1 | . . 1 . Part Schematics Acquired 1 | . . 1 . Parts Damaged . | . . . . Bothacking | -11 -10 -9 -9 ------------ Run | Scr Mat Mat Sto Used RIF Installer . | . . . . Robots Hacked . | . . . . Non-combat . | . . . . Combat . | . . . . Robot Hacks Applied . | . . . . Relay Couplers Released . | . . . . Robots Rewired . | . . . . Allies Hacked . | . . . . Hacks Repelled . | . . . . Allies | -11 -10 -9 -9 -------- Run | Scr Mat Mat Sto Total Allies . | . . . . Largest Group . | . . . . Highest-Rated Group . | . . . . Highest-Rated Ally . | . . . . Total Orders . | . . . . Ally Attacks . | . . . . Total Damage . | . . . . Kills . | . . . . Allies Corrupted . | . . . . Allies Melted . | . . . . Intel | -11 -10 -9 -9 ------- Run | Scr Mat Mat Sto Robot Analysis Total . | . . . . Derelict Logs Recovered . | . . . . Drone Launches . | . . . . Drone Recoveries . | . . . . Exploration | -11 -10 -9 -9 ------------- Run | Scr Mat Mat Sto Turns Passed 1190 | 276 392 335 187 Spaces Moved 752 | 50 255 268 179 Core 30 | 22 1 . 7 Treads . | . . . . Legs . | . . . . Wheels 263 | 28 235 . . Hover . | . . . . Flight 459 | . 19 268 172 Fastest Speed 31 | 50 90 31 35 Average Speed 75 | 72 111 34 85 Slowest Speed 500 | 90 500 117 150 Overloaded Moves . | . . . . Propulsion Burnouts . | . . . . Robots Hopped 4 | . . 3 1 Cave-ins Triggered . | . . . . Exploration Rate (%) 29 | 6 48 36 29 Regions Visited 3 Branch Regions 1 Pre-discovered Areas . | . . . . Known Exits Taken . | . . . . Unknown Exits Taken 3 | 1 1 1 . Scrap Searched . | . . . . Spaces Dug 4 | . . 4 . Terrain Destroyed 118 | . . 118 . Melee . | . . . . Projectile . | . . . . AOE 118 | . . 118 . Terrain Rammed . | . . . . Walls Destroyed . | . . . . Machines Disabled . | . . . . Actions | -11 -10 -9 -9 --------- Run | Scr Mat Mat Sto Total 1292 | 287 314 478 213 Wait 443 | 227 17 179 20 Move 741 | 49 254 261 177 Hop 4 | . . 3 1 Pick Up 14 | 3 8 . 3 Fast Attach 12 | 6 2 2 2 Attach 8 | 1 1 5 1 Detach 1 | 1 . . . Swap . | . . . . Drop 13 | . 7 2 4 Fire 51 | . 25 26 . Melee . | . . . . Ram 2 | . . . 2 Kick . | . . . . Crush . | . . . . Escape Stasis . | . . . . Rewire 3 | . . . 3 Trap . | . . . . Miscellaneous . | . . . . Route ------- -11/Scrapyard -10/Materials (discovered 3 exits: *Mat x2 / [*Min]) -9/Materials -9/Storage (discovered 1 exit: Rec) History --------- Turn | Location | Event 2 | -11/Scrapyard | Discovered new exit (range 16) 277 | -11/Scrapyard | Entered Materials 305 | -10/Materials | Build established: Mutant 381 | -10/Materials | Discovered new exit (range 15) 426 | -10/Materials | Discovered new exit (range 12) 576 | -10/Materials | Discovered new exit (range 15) 669 | -10/Materials | Entered another Materials area 669 | -9/Materials | Evolved 2 slots: Propulsion x2 994 | -9/Materials | Discovered new exit (range 10) 1004 | -9/Materials | Entered Storage 1031 | -9/Storage | Lost 5 parts (1p1n3w) 1038 | -9/Storage | Identified exit to Recycling 1159 | -9/Storage | Core integrity fell below 50% 1186 | -9/Storage | Core integrity fell below 20% 1191 | -9/Storage | Destroyed by Y-45 Defender with Heavy Assault Rifle Last Messages --------------- 01119_ Triggered EMP Trap. 01119_ A bubble of electromagnetic force engulfs the area. 01119_ Door malfunctions. 01120_ O-16 Technician: "IFF HANDSHAKE FAILED. SECURING TERMINAL." 01125_ K-01 Serf collects debris. 01129_ ALERT: Hostiles spotted, dispatching reinforcements to Terminal S002. 01129_ K-01 Serf collects debris. 01131_ Slammed into Y-45 Defender. 01131_ K-01 Serf collects debris. 01149_ O-16 Technician: "IFF HANDSHAKE FAILED. SECURING TERMINAL." 01154_ ALERT: Hostiles spotted, dispatching reinforcements to Terminal S005. 01160_ Imp. Flight Unit destroyed. 01165_ Slammed into Y-45 Defender. 01166_ Cld. Ion Engine destroyed. 01169_ Connecting with Terminal... >>Open Sealed Heavy Doors opened. 01184_ Connecting with Terminal... 01184_ ALERT: Suspicious activity at Terminal S001. Dispatching Investigation squad. Map ----- +----------------------------------------------------+ | ????????????????????????????????????? | | ????????????????????????????????????? | | ????????????????????????????????????? | | ????????????????????????????????????? | | ????????????????????????????????????? | | ????????????????????????????????????? | | ????????????????????????????????????? | | ????????????????????????????????????? | | ????????????????????????????????????? | | ????????????????????????????????????? | | ????????????????????????????????????? | | ????????????????????????????????????? | | ????????????????????????????????????? | | ?????????????????#??????????????????? | | ?????????????#### ######????????????? | | ?????????????# #????????????? | | ?????????????# #????????????? | | ?????????????# ?????????????? | | ?????????????# ?????????????? | | ?????????????# """ """ #????????????? | | ?????????????# """ """ #????????????? | | ?????????????# """ """ #????????????? | | ????###+#????# ######???????? | | ##### ######+#####/## #???????? | | Y Y ######??? | | Y Y @ ; ]]#??? | | ??### # ###+######+##YYY # ]]#??? | | ????##???# #?# ## ## ]]#??? | | ?????????# #?# ## ##T####??? | | ?????????# #?# ## ####?????? | | ?????????# #?# ## #????????? | | ?????????# #?# ## ##???????? | | ?????????# #?# ## T#???????? | | ?????????# #?# ## ##???????? | | ?????????# #?# o #""""????????? | | ?????????# #?###+#####/#????????????? | | ?????????# ##### ##### #??>?????????? | | ?????????# #????????????? | | ?????????# #????????????? | | ########## #????????????? | | ^ #????????????? | | ???# #####+#######????????????? | | ####+## #??? #???????????????? | | # #???"" #???????????????? | | ! # #?? "T #???????????????? | | # ### "" !!#???????????????? | | !=# + ! #???????????????? | | ! ######## #???????????????? | | #??????## #####???????????????? | | #????????##???????????????????? | +----------------------------------------------------+ Best States ------------- Heat Dissipation 28 Energy Generation 14 Energy Capacity 280 Matter Stores 300 Matter Capacity 300 Sight Range 16 Terrain Scan Density 10 Resistance: KI 20 Resistance: TH 20 Resistance: EX 20 Resistance: EM 20 Resistance: I 20 Resistance: S 20 Resistance: P 20 Evasion (%) 63 Offensive Hacking 10 Item Schematics ----------------- EM Shotgun | -9/Materials | Scanalyzed Robot Schematics ------------------ None Fabricated ------------ Nothing Alien Tech Used ----------------- None Achievements -------------- None Challenges ------------ None Game ------ Seed PropulsionXenonProjector Manual? 0 Play Time 00:20:21 Cumulative 30.4 hours Start 2020.09.22 @ 22:16:52 End 2020.09.22 @ 22:36:13 Sessions 1 Manual Loads 0 Difficulty Adventurer Special Mode None Game No. 48 Rogue 30 Adventurer 17 Explorer 1 Win Type - Total 0 Types 0/0/0/0/0/0/0/0/0 Lore% 19 Gallery% 31 Achievement% 25 Wizard Run 0 Options --------- ASCII 0 Keyboard 0 Movement Numpad Keybinds 0 Fullscreen 1 Font 14/SmallcapsGlow Map View 84x54 Tactical HUD 1 Map Filters NONE Filters NONE Steam 1 RUN: 29673203-5568-4bb8-9c3a-64b3db72c206